[Event "Titled Tuesday Blitz March 21 Early 2023"]
[White "Urazayev, Arystanbek"]
[Black "Salimova, Nurgyul"]
[WhiteFideId "13709810"]
[BlackFideId "2915138"]
[WhiteElo "2479"]
[BlackElo "2314"]
[Result "0-1"]
[Round "09"]
[TimeControl "180+2"]
[Date "2023.03.21"]
[WhiteClock "0:00:01"]
[BlackClock "0:00:04"]

1. d4 {[%clk 0:03:00]}  Nf6 {[%clk 0:02:58]} 2. c4 {[%clk 0:03:01]}  e6 {[%clk 0:02:56]} 3. Nf3 {[%clk 0:03:01]}  d5 {[%clk 0:02:56]} 4. g3 {[%clk 0:03:02]}  dxc4 {[%clk 0:02:55]} 5. Bg2 {[%clk 0:03:02]}  a6 {[%clk 0:02:56]} 6. Ne5 {[%clk 0:03:02]}  c5 {[%clk 0:02:45]} 7. Na3 {[%clk 0:03:01]}  cxd4 {[%clk 0:02:43]} 8. Naxc4 {[%clk 0:03:01]}  Bb4+ {[%clk 0:02:29]} 9. Bd2 {[%clk 0:03:01]}  Bxd2+ {[%clk 0:02:29]} 10. Qxd2 {[%clk 0:03:02]}  O-O {[%clk 0:02:29]} 11. O-O {[%clk 0:03:02]}  Nc6 {[%clk 0:02:23]} 12. Nxc6 {[%clk 0:02:50]}  bxc6 {[%clk 0:02:24]} 13. Bxc6 {[%clk 0:02:50]}  Rb8 {[%clk 0:02:22]} 14. b3 {[%clk 0:02:32]}  Qc7 {[%clk 0:02:21]} 15. Bf3 {[%clk 0:02:28]}  e5 {[%clk 0:02:20]} 16. Rac1 {[%clk 0:02:14]}  Bh3 {[%clk 0:02:17]} 17. Rfd1 {[%clk 0:02:15]}  Qe7 {[%clk 0:02:08]} 18. e4 {[%clk 0:02:01]}  Nd7 {[%clk 0:01:54]} 19. Qe2 {[%clk 0:01:33]}  g6 {[%clk 0:01:07]} 20. Na5 {[%clk 0:01:32]}  Qa3 {[%clk 0:00:57]} 21. Nc6 {[%clk 0:01:29]}  Rbc8 {[%clk 0:00:44]} 22. b4 {[%clk 0:01:26]}  Kg7 {[%clk 0:00:37]} 23. Bg4 {[%clk 0:00:47]}  Bxg4 {[%clk 0:00:34]} 24. Qxg4 {[%clk 0:00:47]}  Nb8 {[%clk 0:00:27]} 25. Rc5 {[%clk 0:00:10]}  Rxc6 {[%clk 0:00:23]} 26. Rxe5 {[%clk 0:00:10]}  Qxb4 {[%clk 0:00:19]} 27. Rd5 {[%clk 0:00:10]}  Rc4 {[%clk 0:00:16]} 28. Qf4 {[%clk 0:00:09]}  Nc6 {[%clk 0:00:14]} 29. e5 {[%clk 0:00:09]}  Re8 {[%clk 0:00:10]} 30. Qf6+ {[%clk 0:00:10]}  Kg8 {[%clk 0:00:09]} 31. Rd6 {[%clk 0:00:04]}  Nxe5 {[%clk 0:00:09]} 32. Kg2 {[%clk 0:00:03]}  Qb7+ {[%clk 0:00:08]} 33. Kh3 {[%clk 0:00:04]}  Qe4 {[%clk 0:00:07]} 34. Rd3 {[%clk 0:00:01]}  Qxd3 {[%clk 0:00:06]} 35. Rd8 {[%clk 0:00:01]}  Rxd8 {[%clk 0:00:04]} 0-1


[Site "https://www.chess.com"]

[Event "Titled Tuesday Blitz March 21 Early 2023"]
[White "Liyanage, Ranindu Dilshan"]
[Black "Sarana, Alexey"]
[WhiteFideId "9915834"]
[BlackFideId "24133795"]
[WhiteElo "2199"]
[BlackElo "2714"]
[Result "0-1"]
[Round "09"]
[TimeControl "180+2"]
[Date "2023.03.21"]
[WhiteClock "0:00:08"]
[BlackClock "0:00:19"]

1. e4 {[%clk 0:03:00]}  e5 {[%clk 0:02:59]} 2. Nc3 {[%clk 0:03:01]}  Nf6 {[%clk 0:02:58]} 3. Nf3 {[%clk 0:03:01]}  Nc6 {[%clk 0:02:57]} 4. d4 {[%clk 0:03:00]}  Bb4 {[%clk 0:02:56]} 5. Nxe5 {[%clk 0:02:55]}  Nxe4 {[%clk 0:02:24]} 6. Qg4 {[%clk 0:02:51]}  Nxc3 {[%clk 0:02:24]} 7. Qxg7 {[%clk 0:02:34]}  Rf8 {[%clk 0:02:23]} 8. a3 {[%clk 0:02:35]}  Nxd4 {[%clk 0:01:58]} 9. axb4 {[%clk 0:02:32]}  Nxc2+ {[%clk 0:01:58]} 10. Kd2 {[%clk 0:02:33]}  Nxa1 {[%clk 0:01:58]} 11. Kxc3 {[%clk 0:02:34]}  Qe7 {[%clk 0:01:51]} 12. Bh6 {[%clk 0:02:10]}  a5 {[%clk 0:01:46]} 13. b5 {[%clk 0:01:33]}  Qb4+ {[%clk 0:01:22]} 14. Kd3 {[%clk 0:01:26]}  d5 {[%clk 0:01:23]} 15. Qxf8+ {[%clk 0:01:09]}  Qxf8 {[%clk 0:01:24]} 16. Bxf8 {[%clk 0:01:09]}  Kxf8 {[%clk 0:01:25]} 17. Kc3 {[%clk 0:00:59]}  a4 {[%clk 0:01:17]} 18. Bd3 {[%clk 0:00:59]}  Nb3 {[%clk 0:01:17]} 19. Bxh7 {[%clk 0:00:58]}  Be6 {[%clk 0:01:15]} 20. Bc2 {[%clk 0:00:54]}  Nc5 {[%clk 0:00:58]} 21. h4 {[%clk 0:00:52]}  Nd7 {[%clk 0:00:46]} 22. Nxd7+ {[%clk 0:00:43]}  Bxd7 {[%clk 0:00:46]} 23. Bd3 {[%clk 0:00:44]}  c5 {[%clk 0:00:44]} 24. bxc6 {[%clk 0:00:41]}  bxc6 {[%clk 0:00:45]} 25. Kd4 {[%clk 0:00:37]}  Rb8 {[%clk 0:00:44]} 26. Kc3 {[%clk 0:00:24]}  Rb3+ {[%clk 0:00:41]} 27. Kc2 {[%clk 0:00:24]}  c5 {[%clk 0:00:38]} 28. Rd1 {[%clk 0:00:20]}  Be6 {[%clk 0:00:32]} 29. f3 {[%clk 0:00:08]}  c4 {[%clk 0:00:19]} 30. Bf1 {[%clk 0:00:09]}  Bf5+ {[%clk 0:00:19]} 31. Kc1 {[%clk 0:00:08]}  a3 {[%clk 0:00:19]} 32. bxa3 {[%clk 0:00:08]}  Rb1+ {[%clk 0:00:18]} 33. Kd2 {[%clk 0:00:08]}  c3+ {[%clk 0:00:19]} 0-1


[Site "https://www.chess.com"]

[Event "Titled Tuesday Blitz March 21 Early 2023"]
[White "Ibarra Jerez, Jose Carlos"]
[Black "Matinian, Nikita"]
[WhiteFideId "2226332"]
[BlackFideId "24129100"]
[WhiteElo "2638"]
[BlackElo "2422"]
[Result "1-0"]
[Round "09"]
[TimeControl "180+2"]
[Date "2023.03.21"]
[WhiteClock "0:00:17"]
[BlackClock "0:00:04"]

1. Nf3 {[%clk 0:03:00]}  Nf6 {[%clk 0:02:59]} 2. g3 {[%clk 0:03:01]}  g6 {[%clk 0:02:59]} 3. b3 {[%clk 0:03:01]}  Bg7 {[%clk 0:03:00]} 4. Bb2 {[%clk 0:03:02]}  d6 {[%clk 0:03:00]} 5. d4 {[%clk 0:03:02]}  a5 {[%clk 0:02:57]} 6. c4 {[%clk 0:03:01]}  a4 {[%clk 0:02:56]} 7. bxa4 {[%clk 0:03:01]}  O-O {[%clk 0:02:56]} 8. Bg2 {[%clk 0:03:01]}  Nbd7 {[%clk 0:02:53]} 9. Nc3 {[%clk 0:02:46]}  Nb6 {[%clk 0:02:52]} 10. Qb3 {[%clk 0:02:40]}  Bd7 {[%clk 0:02:46]} 11. a5 {[%clk 0:02:29]}  Rxa5 {[%clk 0:02:44]} 12. O-O {[%clk 0:02:29]}  Qc8 {[%clk 0:02:43]} 13. Rfc1 {[%clk 0:02:27]}  Bh3 {[%clk 0:02:39]} 14. Bh1 {[%clk 0:02:25]}  Rh5 {[%clk 0:02:34]} 15. c5 {[%clk 0:02:16]}  dxc5 {[%clk 0:02:07]} 16. dxc5 {[%clk 0:02:17]}  Nbd7 {[%clk 0:01:55]} 17. c6 {[%clk 0:02:11]}  bxc6 {[%clk 0:01:55]} 18. a4 {[%clk 0:02:08]}  e5 {[%clk 0:01:55]} 19. Ba3 {[%clk 0:01:53]}  Re8 {[%clk 0:01:52]} 20. Nd2 {[%clk 0:01:53]}  Be6 {[%clk 0:01:40]} 21. Qc2 {[%clk 0:01:46]}  Nd5 {[%clk 0:01:38]} 22. Nxd5 {[%clk 0:01:42]}  cxd5 {[%clk 0:01:17]} 23. Qxc7 {[%clk 0:01:41]}  Qa6 {[%clk 0:01:12]} 24. Bf3 {[%clk 0:01:36]}  Rh6 {[%clk 0:01:09]} 25. Rc6 {[%clk 0:01:35]}  Qxa4 {[%clk 0:01:07]} 26. Bb2 {[%clk 0:01:29]}  Qb5 {[%clk 0:01:02]} 27. Rb1 {[%clk 0:01:21]}  Rb8 {[%clk 0:00:48]} 28. Bc1 {[%clk 0:01:11]}  Qxb1 {[%clk 0:00:45]} 29. Nxb1 {[%clk 0:01:11]}  Rxb1 {[%clk 0:00:46]} 30. Rxe6 {[%clk 0:00:53]}  fxe6 {[%clk 0:00:45]} 31. Kg2 {[%clk 0:00:53]}  Rxc1 {[%clk 0:00:36]} 32. Qxc1 {[%clk 0:00:51]}  e4 {[%clk 0:00:32]} 33. Bg4 {[%clk 0:00:51]}  Nf8 {[%clk 0:00:32]} 34. Qc8 {[%clk 0:00:48]}  g5 {[%clk 0:00:33]} 35. Qd8 {[%clk 0:00:45]}  Rf6 {[%clk 0:00:31]} 36. e3 {[%clk 0:00:39]}  h6 {[%clk 0:00:31]} 37. Qe7 {[%clk 0:00:37]}  Kh7 {[%clk 0:00:30]} 38. Qe8 {[%clk 0:00:31]}  Kg8 {[%clk 0:00:25]} 39. f3 {[%clk 0:00:30]}  exf3+ {[%clk 0:00:25]} 40. Bxf3 {[%clk 0:00:31]}  Rf5 {[%clk 0:00:17]} 41. e4 {[%clk 0:00:27]}  dxe4 {[%clk 0:00:16]} 42. Bxe4 {[%clk 0:00:28]}  Rf6 {[%clk 0:00:13]} 43. Qe7 {[%clk 0:00:26]}  Rf7 {[%clk 0:00:12]} 44. Qe8 {[%clk 0:00:26]}  Rc7 {[%clk 0:00:09]} 45. Bg6 {[%clk 0:00:23]}  Rb7 {[%clk 0:00:06]} 46. Be4 {[%clk 0:00:21]}  Rb2+ {[%clk 0:00:05]} 47. Kh3 {[%clk 0:00:20]}  Rf2 {[%clk 0:00:05]} 48. Bd3 {[%clk 0:00:17]}  Rf6 {[%clk 0:00:04]} 49. Kg2 {[%clk 0:00:17]} 1-0


[Site "https://www.chess.com"]

[Event "Titled Tuesday Blitz March 21 Early 2023"]
[White "Lewtak, Damian"]
[Black "Yeletsky, Ivan"]
[WhiteFideId "1141724"]
[BlackFideId "24180327"]
[WhiteElo "2302"]
[BlackElo "2414"]
[Result "0-1"]
[Round "09"]
[TimeControl "180+2"]
[Date "2023.03.21"]
[WhiteClock "0:00:15"]
[BlackClock "0:00:58"]

1. e4 {[%clk 0:02:55]}  Nf6 {[%clk 0:02:58]} 2. Nc3 {[%clk 0:02:52]}  d5 {[%clk 0:02:58]} 3. exd5 {[%clk 0:02:51]}  Nxd5 {[%clk 0:02:58]} 4. Nxd5 {[%clk 0:02:52]}  Qxd5 {[%clk 0:02:58]} 5. Qf3 {[%clk 0:02:53]}  c6 {[%clk 0:02:52]} 6. Qxd5 {[%clk 0:02:51]}  cxd5 {[%clk 0:02:53]} 7. b3 {[%clk 0:02:48]}  Bf5 {[%clk 0:02:51]} 8. d3 {[%clk 0:02:47]}  Nc6 {[%clk 0:02:49]} 9. Bb2 {[%clk 0:02:46]}  e6 {[%clk 0:02:46]} 10. a3 {[%clk 0:02:44]}  Rc8 {[%clk 0:02:41]} 11. Nf3 {[%clk 0:02:44]}  h5 {[%clk 0:02:23]} 12. O-O-O {[%clk 0:02:38]}  h4 {[%clk 0:02:22]} 13. Be2 {[%clk 0:02:33]}  f6 {[%clk 0:02:22]} 14. Kb1 {[%clk 0:02:22]}  Bc5 {[%clk 0:02:22]} 15. Rhf1 {[%clk 0:02:19]}  Kf7 {[%clk 0:02:14]} 16. h3 {[%clk 0:02:17]}  b5 {[%clk 0:02:10]} 17. d4 {[%clk 0:02:06]}  Be7 {[%clk 0:02:06]} 18. Rd2 {[%clk 0:01:51]}  b4 {[%clk 0:02:04]} 19. a4 {[%clk 0:01:47]}  Bd6 {[%clk 0:02:01]} 20. Bd3 {[%clk 0:01:43]}  Bf4 {[%clk 0:02:00]} 21. Rdd1 {[%clk 0:01:42]}  Ne7 {[%clk 0:02:00]} 22. Rfe1 {[%clk 0:01:41]}  Rc7 {[%clk 0:01:57]} 23. Bxf5 {[%clk 0:01:31]}  Nxf5 {[%clk 0:01:57]} 24. Re2 {[%clk 0:01:32]}  Nd6 {[%clk 0:01:53]} 25. Ne1 {[%clk 0:01:22]}  Ne4 {[%clk 0:01:48]} 26. Nd3 {[%clk 0:01:22]}  Bd6 {[%clk 0:01:48]} 27. Rde1 {[%clk 0:01:19]}  Re8 {[%clk 0:01:44]} 28. Ka1 {[%clk 0:00:50]}  g5 {[%clk 0:01:44]} 29. Bc1 {[%clk 0:00:48]}  a5 {[%clk 0:01:36]} 30. Be3 {[%clk 0:00:42]}  Rec8 {[%clk 0:01:35]} 31. Kb2 {[%clk 0:00:40]}  Kg6 {[%clk 0:01:25]} 32. f3 {[%clk 0:00:38]}  Ng3 {[%clk 0:01:20]} 33. Rd2 {[%clk 0:00:38]}  e5 {[%clk 0:01:02]} 34. dxe5 {[%clk 0:00:30]}  fxe5 {[%clk 0:01:03]} 35. Bf2 {[%clk 0:00:27]}  e4 {[%clk 0:01:03]} 36. Bxg3 {[%clk 0:00:17]}  Bxg3 {[%clk 0:01:02]} 37. Nf2 {[%clk 0:00:17]}  Be5+ {[%clk 0:00:59]} 38. Kc1 {[%clk 0:00:15]}  Bf4 {[%clk 0:00:58]} 0-1


[Site "https://www.chess.com"]

[Event "Titled Tuesday Blitz March 21 Early 2023"]
[White "Ashraf, Artin"]
[Black "Rozman, Levy"]
[WhiteFideId "22514805"]
[BlackFideId "2039877"]
[WhiteElo "2188"]
[BlackElo "2376"]
[Result "0-1"]
[Round "09"]
[TimeControl "180+2"]
[Date "2023.03.21"]
[WhiteClock "0:00:09"]
[BlackClock "0:00:11"]

1. Nf3 {[%clk 0:03:00]}  d5 {[%clk 0:02:37]} 2. g3 {[%clk 0:03:00]}  Nf6 {[%clk 0:02:34]} 3. Bg2 {[%clk 0:02:59]}  Bf5 {[%clk 0:02:08]} 4. O-O {[%clk 0:02:58]}  e6 {[%clk 0:02:06]} 5. d3 {[%clk 0:02:56]}  h6 {[%clk 0:02:04]} 6. c4 {[%clk 0:02:55]}  c6 {[%clk 0:02:00]} 7. cxd5 {[%clk 0:02:41]}  cxd5 {[%clk 0:01:56]} 8. Qb3 {[%clk 0:02:39]}  Qb6 {[%clk 0:01:44]} 9. Qxb6 {[%clk 0:02:37]}  axb6 {[%clk 0:01:45]} 10. Nc3 {[%clk 0:02:38]}  Be7 {[%clk 0:01:41]} 11. Nd4 {[%clk 0:02:10]}  Bg6 {[%clk 0:01:39]} 12. e4 {[%clk 0:02:04]}  O-O {[%clk 0:01:26]} 13. exd5 {[%clk 0:02:02]}  exd5 {[%clk 0:01:23]} 14. Rd1 {[%clk 0:01:46]}  Nc6 {[%clk 0:01:20]} 15. Be3 {[%clk 0:01:46]}  Rfd8 {[%clk 0:01:17]} 16. Nxc6 {[%clk 0:01:36]}  bxc6 {[%clk 0:01:16]} 17. Bxb6 {[%clk 0:01:37]}  Rdb8 {[%clk 0:01:17]} 18. Bd4 {[%clk 0:01:35]}  Rb4 {[%clk 0:01:06]} 19. Ne2 {[%clk 0:01:29]}  Bh5 {[%clk 0:01:06]} 20. Bc3 {[%clk 0:01:24]}  Rba4 {[%clk 0:00:50]} 21. Re1 {[%clk 0:01:04]}  Rxa2 {[%clk 0:00:47]} 22. Rxa2 {[%clk 0:01:02]}  Rxa2 {[%clk 0:00:48]} 23. Nd4 {[%clk 0:00:35]}  Bf8 {[%clk 0:00:22]} 24. Nxc6 {[%clk 0:00:34]}  Bg6 {[%clk 0:00:21]} 25. Ne5 {[%clk 0:00:25]}  Bf5 {[%clk 0:00:18]} 26. h3 {[%clk 0:00:22]}  Bc5 {[%clk 0:00:14]} 27. d4 {[%clk 0:00:18]}  Bb6 {[%clk 0:00:14]} 28. f3 {[%clk 0:00:18]}  Ra4 {[%clk 0:00:10]} 29. Nc6 {[%clk 0:00:18]}  Be6 {[%clk 0:00:06]} 30. Bf1 {[%clk 0:00:18]}  Bd7 {[%clk 0:00:05]} 31. Bb5 {[%clk 0:00:13]}  Bxc6 {[%clk 0:00:05]} 32. Bxc6 {[%clk 0:00:13]}  Bxd4+ {[%clk 0:00:06]} 33. Bxd4 {[%clk 0:00:09]}  Rxd4 {[%clk 0:00:06]} 34. Re2 {[%clk 0:00:09]}  Rb4 {[%clk 0:00:06]} 35. Kf2 {[%clk 0:00:10]}  d4 {[%clk 0:00:04]} 36. Rc2 {[%clk 0:00:07]}  g5 {[%clk 0:00:04]} 37. Ke2 {[%clk 0:00:06]}  h5 {[%clk 0:00:03]} 38. g4 {[%clk 0:00:04]}  hxg4 {[%clk 0:00:03]} 39. hxg4 {[%clk 0:00:05]}  Kg7 {[%clk 0:00:03]} 40. Kd3 {[%clk 0:00:06]}  Kf8 {[%clk 0:00:03]} 41. Ba8 {[%clk 0:00:03]}  Ke7 {[%clk 0:00:04]} 42. Rc7+ {[%clk 0:00:01]}  Ke6 {[%clk 0:00:04]} 43. Rc2 {[%clk 0:00:02]}  Nd7 {[%clk 0:00:03]} 44. Be4 {[%clk 0:00:01]}  Kd6 {[%clk 0:00:04]} 45. Kd2 {[%clk 0:00:02]}  Ne5 {[%clk 0:00:04]} 46. Rc8 {[%clk 0:00:02]}  Rxb2+ {[%clk 0:00:03]} 47. Kc1 {[%clk 0:00:03]}  Rf2 {[%clk 0:00:03]} 48. Rd8+ {[%clk 0:00:03]}  Ke6 {[%clk 0:00:04]} 49. Rxd4 {[%clk 0:00:03]}  Nxf3 {[%clk 0:00:03]} 50. Ra4 {[%clk 0:00:04]}  Ne5 {[%clk 0:00:02]} 51. Ra6+ {[%clk 0:00:05]}  Ke7 {[%clk 0:00:03]} 52. Bf5 {[%clk 0:00:06]}  Nc4 {[%clk 0:00:02]} 53. Ra7+ {[%clk 0:00:05]}  Kf6 {[%clk 0:00:03]} 54. Ra6+ {[%clk 0:00:06]}  Kg7 {[%clk 0:00:03]} 55. Ra7 {[%clk 0:00:07]}  Ne3 {[%clk 0:00:03]} 56. Bc8 {[%clk 0:00:07]}  Ng2 {[%clk 0:00:03]} 57. Kd1 {[%clk 0:00:06]}  Ne3+ {[%clk 0:00:04]} 58. Ke1 {[%clk 0:00:06]}  Rf4 {[%clk 0:00:04]} 59. Ke2 {[%clk 0:00:04]}  Nxg4 {[%clk 0:00:05]} 60. Ba6 {[%clk 0:00:04]}  Ne5 {[%clk 0:00:04]} 61. Ke3 {[%clk 0:00:04]}  Rf6 {[%clk 0:00:04]} 62. Be2 {[%clk 0:00:04]}  g4 {[%clk 0:00:04]} 63. Ra4 {[%clk 0:00:04]}  Rg6 {[%clk 0:00:04]} 64. Kf4 {[%clk 0:00:05]}  f6 {[%clk 0:00:04]} 65. Ra7+ {[%clk 0:00:04]}  Kh6 {[%clk 0:00:04]} 66. Bf1 {[%clk 0:00:04]}  g3 {[%clk 0:00:04]} 67. Kf5 {[%clk 0:00:04]}  g2 {[%clk 0:00:04]} 68. Bxg2 {[%clk 0:00:04]}  Rxg2 {[%clk 0:00:04]} 69. Kxf6 {[%clk 0:00:05]}  Ng4+ {[%clk 0:00:04]} 70. Kf5 {[%clk 0:00:05]}  Kh5 {[%clk 0:00:04]} 71. Rh7+ {[%clk 0:00:04]}  Nh6+ {[%clk 0:00:04]} 72. Ke4 {[%clk 0:00:05]}  Ra2 {[%clk 0:00:05]} 73. Rb7 {[%clk 0:00:05]}  Ra4+ {[%clk 0:00:05]} 74. Ke5 {[%clk 0:00:04]}  Ra5+ {[%clk 0:00:05]} 75. Kd4 {[%clk 0:00:04]}  Ra1 {[%clk 0:00:06]} 76. Ke4 {[%clk 0:00:04]}  Ng4 {[%clk 0:00:06]} 77. Rg7 {[%clk 0:00:04]}  Ra4+ {[%clk 0:00:06]} 78. Kd3 {[%clk 0:00:04]}  Ra3+ {[%clk 0:00:06]} 79. Kc4 {[%clk 0:00:05]}  Kh6 {[%clk 0:00:06]} 80. Re7 {[%clk 0:00:03]}  Ra4+ {[%clk 0:00:06]} 81. Kb5 {[%clk 0:00:04]}  Rf4 {[%clk 0:00:06]} 82. Re6+ {[%clk 0:00:04]}  Kg7 {[%clk 0:00:07]} 83. Re1 {[%clk 0:00:05]}  Kf6 {[%clk 0:00:07]} 84. Kc5 {[%clk 0:00:05]}  Ne5 {[%clk 0:00:07]} 85. Kd5 {[%clk 0:00:06]}  Nf3 {[%clk 0:00:07]} 86. Re6+ {[%clk 0:00:06]}  Kf5 {[%clk 0:00:07]} 87. Re8 {[%clk 0:00:07]}  Rd4+ {[%clk 0:00:08]} 88. Kc5 {[%clk 0:00:07]}  Rd1 {[%clk 0:00:08]} 89. Rf8+ {[%clk 0:00:08]}  Ke4 {[%clk 0:00:09]} 90. Re8+ {[%clk 0:00:08]}  Ne5 {[%clk 0:00:09]} 91. Re7 {[%clk 0:00:08]}  Rc1+ {[%clk 0:00:10]} 92. Kb5 {[%clk 0:00:09]}  Rb1+ {[%clk 0:00:10]} 93. Kc5 {[%clk 0:00:09]}  Kf5 {[%clk 0:00:10]} 94. Re8 {[%clk 0:00:09]}  Rc1+ {[%clk 0:00:10]} 95. Kb5 {[%clk 0:00:09]}  Nf7 {[%clk 0:00:10]} 96. Re2 {[%clk 0:00:09]}  Rb1+ {[%clk 0:00:09]} 97. Kc5 {[%clk 0:00:08]}  Ng5 {[%clk 0:00:09]} 98. Rf2+ {[%clk 0:00:08]}  Ke6 {[%clk 0:00:10]} 99. Re2+ {[%clk 0:00:08]}  Kd7 {[%clk 0:00:10]} 100. Rd2+ {[%clk 0:00:08]}  Kc7 {[%clk 0:00:10]} 101. Rg2 {[%clk 0:00:09]}  Ne6+ {[%clk 0:00:10]} 102. Kd5 {[%clk 0:00:09]}  Nf4+ {[%clk 0:00:11]} 0-1


[Site "https://www.chess.com"]

[Event "Titled Tuesday Blitz March 21 Early 2023"]
[White "Aditya Mittal"]
[Black "Tregubov, Pavel V."]
[WhiteFideId "35042025"]
[BlackFideId "4115341"]
[WhiteElo "2396"]
[BlackElo "2425"]
[Result "1-0"]
[Round "09"]
[TimeControl "180+2"]
[Date "2023.03.21"]
[WhiteClock "0:00:56"]
[BlackClock "0:00:05"]

1. d4 {[%clk 0:03:00]}  Nf6 {[%clk 0:02:57]} 2. c4 {[%clk 0:03:01]}  e6 {[%clk 0:02:57]} 3. Nf3 {[%clk 0:03:02]}  Bb4+ {[%clk 0:02:57]} 4. Bd2 {[%clk 0:03:02]}  Qe7 {[%clk 0:02:57]} 5. g3 {[%clk 0:03:02]}  Bxd2+ {[%clk 0:02:55]} 6. Qxd2 {[%clk 0:02:53]}  Nc6 {[%clk 0:02:56]} 7. a3 {[%clk 0:02:53]}  d5 {[%clk 0:02:48]} 8. Nc3 {[%clk 0:02:49]}  O-O {[%clk 0:02:41]} 9. Bg2 {[%clk 0:02:48]}  dxc4 {[%clk 0:02:41]} 10. Ne5 {[%clk 0:02:36]}  Nxe5 {[%clk 0:02:36]} 11. dxe5 {[%clk 0:02:37]}  Nd7 {[%clk 0:02:36]} 12. Qd4 {[%clk 0:02:31]}  Qc5 {[%clk 0:02:36]} 13. Qxc5 {[%clk 0:02:22]}  Nxc5 {[%clk 0:02:36]} 14. Rd1 {[%clk 0:02:22]}  Rb8 {[%clk 0:02:31]} 15. Rd4 {[%clk 0:02:03]}  b5 {[%clk 0:02:30]} 16. f4 {[%clk 0:01:52]}  Bb7 {[%clk 0:02:27]} 17. Bxb7 {[%clk 0:01:48]}  Rxb7 {[%clk 0:02:27]} 18. Kf2 {[%clk 0:01:49]}  Rfb8 {[%clk 0:01:50]} 19. Rhd1 {[%clk 0:01:48]}  Kf8 {[%clk 0:01:50]} 20. Kf3 {[%clk 0:01:32]}  Ke8 {[%clk 0:01:50]} 21. g4 {[%clk 0:01:28]}  Nb3 {[%clk 0:01:30]} 22. Rd7 {[%clk 0:01:22]}  c5 {[%clk 0:01:29]} 23. Rxb7 {[%clk 0:01:12]}  Rxb7 {[%clk 0:01:29]} 24. Ne4 {[%clk 0:01:12]}  Ke7 {[%clk 0:01:20]} 25. f5 {[%clk 0:01:12]}  Nd4+ {[%clk 0:01:08]} 26. Kf4 {[%clk 0:01:10]}  exf5 {[%clk 0:00:41]} 27. gxf5 {[%clk 0:01:09]}  Nxe2+ {[%clk 0:00:38]} 28. Ke3 {[%clk 0:00:56]}  Nd4 {[%clk 0:00:39]} 29. f6+ {[%clk 0:00:57]}  gxf6 {[%clk 0:00:33]} 30. exf6+ {[%clk 0:00:58]}  Kf8 {[%clk 0:00:04]} 31. Nxc5 {[%clk 0:00:57]}  Nf5+ {[%clk 0:00:05]} 32. Kf4 {[%clk 0:00:56]} 1-0


[Site "https://www.chess.com"]

[Event "Titled Tuesday Blitz March 21 Early 2023"]
[White "Kim, Sergey"]
[Black "Kilic, Eray"]
[WhiteFideId "13700570"]
[BlackFideId "44517173"]
[WhiteElo "2609"]
[BlackElo "2328"]
[Result "0-1"]
[Round "09"]
[TimeControl "180+2"]
[Date "2023.03.21"]
[WhiteClock "0:00:20"]
[BlackClock "0:00:28"]

1. d4 {[%clk 0:03:00]}  Nf6 {[%clk 0:03:00]} 2. c4 {[%clk 0:03:01]}  g6 {[%clk 0:03:00]} 3. Nc3 {[%clk 0:03:01]}  d5 {[%clk 0:02:59]} 4. cxd5 {[%clk 0:03:01]}  Nxd5 {[%clk 0:03:00]} 5. e4 {[%clk 0:03:01]}  Nxc3 {[%clk 0:03:00]} 6. bxc3 {[%clk 0:03:02]}  Bg7 {[%clk 0:03:01]} 7. Bc4 {[%clk 0:03:02]}  c5 {[%clk 0:03:00]} 8. Ne2 {[%clk 0:03:02]}  O-O {[%clk 0:03:00]} 9. O-O {[%clk 0:03:02]}  Nc6 {[%clk 0:03:00]} 10. Be3 {[%clk 0:03:02]}  b6 {[%clk 0:03:01]} 11. Qd2 {[%clk 0:03:01]}  Bb7 {[%clk 0:02:58]} 12. Rad1 {[%clk 0:02:55]}  Na5 {[%clk 0:02:48]} 13. Bd3 {[%clk 0:02:53]}  cxd4 {[%clk 0:02:48]} 14. cxd4 {[%clk 0:02:53]}  Rc8 {[%clk 0:02:49]} 15. Bh6 {[%clk 0:02:50]}  Qd7 {[%clk 0:02:47]} 16. Bxg7 {[%clk 0:02:48]}  Kxg7 {[%clk 0:02:48]} 17. Qg5 {[%clk 0:02:41]}  Qe6 {[%clk 0:02:39]} 18. Nf4 {[%clk 0:02:35]}  Qxa2 {[%clk 0:02:08]} 19. Qxe7 {[%clk 0:02:34]}  Rfe8 {[%clk 0:01:59]} 20. Qg5 {[%clk 0:02:32]}  Kh8 {[%clk 0:01:21]} 21. d5 {[%clk 0:02:05]}  Qb2 {[%clk 0:01:17]} 22. Rfe1 {[%clk 0:01:28]}  Qe5 {[%clk 0:01:16]} 23. Qh6 {[%clk 0:01:28]}  Qg7 {[%clk 0:01:14]} 24. Qg5 {[%clk 0:01:28]}  Qe5 {[%clk 0:01:12]} 25. Qh6 {[%clk 0:01:28]}  Nb3 {[%clk 0:01:10]} 26. h4 {[%clk 0:01:20]}  Nc5 {[%clk 0:01:01]} 27. Bb1 {[%clk 0:01:18]}  a5 {[%clk 0:00:55]} 28. Nh3 {[%clk 0:01:11]}  a4 {[%clk 0:00:51]} 29. Qe3 {[%clk 0:01:05]}  Kg7 {[%clk 0:00:49]} 30. f4 {[%clk 0:01:02]}  Qb2 {[%clk 0:00:49]} 31. Rd2 {[%clk 0:00:57]}  Qb3 {[%clk 0:00:49]} 32. Qd4+ {[%clk 0:00:56]}  Kg8 {[%clk 0:00:49]} 33. Ng5 {[%clk 0:00:53]}  h6 {[%clk 0:00:45]} 34. Nf3 {[%clk 0:00:51]}  Rcd8 {[%clk 0:00:44]} 35. Qf6 {[%clk 0:00:42]}  Nd7 {[%clk 0:00:39]} 36. Qd4 {[%clk 0:00:39]}  Nc5 {[%clk 0:00:38]} 37. Qf6 {[%clk 0:00:39]}  Nd7 {[%clk 0:00:33]} 38. Qd4 {[%clk 0:00:38]}  Qb5 {[%clk 0:00:32]} 39. Kh2 {[%clk 0:00:34]}  a3 {[%clk 0:00:30]} 40. Ba2 {[%clk 0:00:31]}  Qc5 {[%clk 0:00:30]} 41. Qd3 {[%clk 0:00:28]}  Nf6 {[%clk 0:00:30]} 42. Ne5 {[%clk 0:00:22]}  Rxe5 {[%clk 0:00:27]} 43. fxe5 {[%clk 0:00:22]}  Ng4+ {[%clk 0:00:28]} 44. Kg3 {[%clk 0:00:20]}  Nxe5 {[%clk 0:00:28]} 45. Qe3 {[%clk 0:00:20]}  Qd6 {[%clk 0:00:28]} 46. Kf2 {[%clk 0:00:20]}  Ng4+ {[%clk 0:00:28]} 0-1


[Site "https://www.chess.com"]

[Event "Titled Tuesday Blitz March 21 Early 2023"]
[White "Richter, Nils"]
[Black "Galchenko, Matvey"]
[WhiteFideId "12990809"]
[BlackFideId "24175480"]
[WhiteElo "2381"]
[BlackElo "2404"]
[Result "0-1"]
[Round "09"]
[TimeControl "180+2"]
[Date "2023.03.21"]
[WhiteClock "0:00:12"]
[BlackClock "0:00:37"]

1. e4 {[%clk 0:03:00]}  e6 {[%clk 0:02:57]} 2. d3 {[%clk 0:02:59]}  d5 {[%clk 0:02:58]} 3. Nd2 {[%clk 0:03:00]}  Nf6 {[%clk 0:02:58]} 4. Ngf3 {[%clk 0:03:00]}  c5 {[%clk 0:02:59]} 5. g3 {[%clk 0:02:59]}  Nc6 {[%clk 0:03:00]} 6. Bg2 {[%clk 0:02:59]}  Be7 {[%clk 0:03:00]} 7. O-O {[%clk 0:02:59]}  O-O {[%clk 0:03:01]} 8. Re1 {[%clk 0:02:53]}  b5 {[%clk 0:03:01]} 9. e5 {[%clk 0:02:49]}  Nd7 {[%clk 0:02:59]} 10. Nf1 {[%clk 0:02:47]}  Bb7 {[%clk 0:02:55]} 11. h4 {[%clk 0:02:46]}  Qc7 {[%clk 0:02:56]} 12. N1h2 {[%clk 0:02:44]}  Ndxe5 {[%clk 0:02:50]} 13. Nxe5 {[%clk 0:02:42]}  Nxe5 {[%clk 0:02:51]} 14. Bf4 {[%clk 0:02:40]}  Bd6 {[%clk 0:02:50]} 15. h5 {[%clk 0:02:31]}  h6 {[%clk 0:02:44]} 16. Qd2 {[%clk 0:02:23]}  Rfe8 {[%clk 0:02:34]} 17. Bxe5 {[%clk 0:02:10]}  Bxe5 {[%clk 0:02:34]} 18. Ng4 {[%clk 0:02:11]}  Bd6 {[%clk 0:02:26]} 19. Re2 {[%clk 0:01:50]}  f5 {[%clk 0:02:13]} 20. Nxh6+ {[%clk 0:01:29]}  gxh6 {[%clk 0:02:14]} 21. Qxh6 {[%clk 0:01:29]}  Qf7 {[%clk 0:02:09]} 22. Rae1 {[%clk 0:01:19]}  Bf8 {[%clk 0:02:09]} 23. Qg5+ {[%clk 0:01:17]}  Kh7 {[%clk 0:02:07]} 24. Bh3 {[%clk 0:01:07]}  Kh8 {[%clk 0:01:08]} 25. g4 {[%clk 0:00:37]}  Bg7 {[%clk 0:01:01]} 26. gxf5 {[%clk 0:00:32]}  e5 {[%clk 0:00:42]} 27. h6 {[%clk 0:00:19]}  Bf6 {[%clk 0:00:40]} 28. Qd2 {[%clk 0:00:17]}  Rg8+ {[%clk 0:00:39]} 29. Kf1 {[%clk 0:00:17]}  Qh5 {[%clk 0:00:37]} 30. Bg2 {[%clk 0:00:15]}  Rxg2 {[%clk 0:00:37]} 31. Kxg2 {[%clk 0:00:12]}  Rg8+ {[%clk 0:00:37]} 0-1


[Site "https://www.chess.com"]